fUST/lending_fUST_20240612
["ID","MTS","AMOUNT","RATE_DAILY","PERIOD"]
[329127948,1718125851418,-500.0,0.00021369,2]
[329127951,1718125851436,-5742.38,0.00021369,2]
[329127953,1718125851449,-500.0,0.00021369,2]
[329127956,1718125851469,-493.4799678,0.00021369,2]
[329127959,1718125851483,-500.0,0.00021369,2]
[329127961,1718125851499,-480.50861842,0.00021369,2]
[329127964,1718125851513,-500.0,0.00021369,2]
[329127966,1718125851528,-586.63710759,0.00021369,2]
[329127969,1718125851545,-500.0,0.00021369,2]
[329127971,1718125851560,-500.0,0.00021369,2]
[329127974,1718125851575,-500.0,0.00021369,2]
[329127977,1718125851591,-500.0,0.00021369,2]
[329127979,1718125851607,-501.14,0.00021369,2]
[329127982,1718125851623,-503.9760524,0.00021369,2]
[329127985,1718125851641,-500.0,0.00021369,2]
[329127987,1718125851662,-500.0,0.00021369,2]
[329127989,1718125851678,-500.0,0.00021369,2]
[329127992,1718125851695,-307.49207449,0.00021369,2]
[329127995,1718125851710,-151.0,0.00021369,2]
[329127997,1718125851725,-502.92466932,0.00021369,2]
[329128000,1718125851742,-500.0,0.00021369,2]
[329128002,1718125851758,-619.29,0.00021369,2]
[329128005,1718125851774,-500.0,0.00021369,2]
[329128007,1718125851793,-623.14,0.00021369,2]
[329128009,1718125851810,-500.0,0.00021369,2]
[329128012,1718125851826,-500.0,0.00021369,2]
[329128014,1718125851842,-500.0,0.00021369,2]
[329128016,1718125851861,-500.0,0.00021369,2]
[329128019,1718125851877,-500.0,0.00021369,2]
[329128021,1718125851895,-500.0,0.00021369,2]
[329128023,1718125851911,-500.0,0.00021369,2]
[329128025,1718125851929,-500.0,0.00021369,2]
[329128028,1718125851946,-616.61,0.00021369,2]
[329128030,1718125851964,-500.0,0.00021369,2]
[329128032,1718125851978,-500.0,0.00021369,2]
[329128033,1718125851988,-500.0,0.00021369,2]
[329128034,1718125851999,-500.0,0.00021369,2]
[329128035,1718125852009,-7339.82553371,0.00021369,2]
[329128036,1718125852148,-5322.26622453,0.0002137,2]
[329128037,1718125852165,-5322.26622453,0.0002137,2]
[329128038,1718125852175,-10402.69639713,0.00021371,2]
[329128039,1718125852185,-7339.82553371,0.00021377,2]
[329128040,1718125852196,-7339.82553371,0.0002138,2]
[329128041,1718125852206,-28865.11288659,0.00021382,2]
[329128042,1718125852217,-10402.69639713,0.00021391,2]
[329128043,1718125852228,-15727.27240459,0.00021392,2]
[329128044,1718125852413,-13137.840482,0.00021392,2]
[329128045,1718125852425,-16482.30194926,0.00021395,2]
[329128046,1718125852437,-883.2,0.00021494,2]
[329128047,1718125852447,-2322.25,0.00021502,2]
[329128048,1718125852458,-615.12,0.00021502,2]
[329128049,1718125852469,-1685.46,0.00021502,2]
[329128050,1718125852480,-210.45280167,0.00021502,2]
[329128051,1718125852493,-726.39893815,0.00021502,2]
[329128052,1718125854160,-246.700354,0.00019204,2]
[329128053,1718125854171,-309.91011497,0.00019997,2]
[329128054,1718125854181,-575.2566376,0.00019998,2]
[329128055,1718125854191,-575.2566376,0.00019998,2]
[329128056,1718125854201,-575.2566376,0.00019998,2]
[329128057,1718125854211,-575.2566376,0.00019998,2]
[329128058,1718125854221,-575.2566376,0.00019998,2]
[329128059,1718125854231,-575.2566376,0.00019998,2]
[329128060,1718125854241,-575.2566376,0.00019998,2]
[329128061,1718125854251,-575.2566376,0.00019998,2]
[329128062,1718125854261,-575.2566376,0.00019998,2]
[329128063,1718125854271,-575.2566376,0.00019998,2]
[329128064,1718125854281,-575.2566376,0.00019998,2]
[329128065,1718125854291,-575.2566376,0.00019998,2]
[329128066,1718125854300,-575.2566376,0.00019998,2]
[329128067,1718125854310,-575.2566376,0.00019998,2]
[329128068,1718125854320,-575.2566376,0.00019998,2]
[329128069,1718125854330,-575.2566376,0.00019998,2]
[329128070,1718125854340,-575.2566376,0.00019998,2]
[329128071,1718125854351,-575.2566376,0.00019998,2]
[329128072,1718125854361,-575.2566376,0.00019998,2]
[329128073,1718125854372,-575.2566376,0.00019998,2]
[329128074,1718125854382,-575.2566376,0.00019998,2]
[329128075,1718125854392,-575.2566376,0.00019998,2]
[329128076,1718125854402,-575.2566376,0.00019998,2]
[329128077,1718125854412,-575.2566376,0.00019998,2]
[329128078,1718125854422,-575.2566376,0.00019998,2]
[329128079,1718125854432,-575.2566376,0.00019998,2]
[329128080,1718125854441,-575.2566376,0.00019998,2]
[329128081,1718125854451,-399.72569273,0.00019998,2]
[329128082,1718125854461,-514.56264597,0.00019998,2]
[329128083,1718125854473,-60.69399163,0.00019998,2]
[329128084,1718125854484,-575.2566376,0.00019998,2]
[329128085,1718125854493,-575.2566376,0.00019998,2]
[329128086,1718125854503,-575.2566376,0.00019998,2]
[329128087,1718125854513,-575.2566376,0.00019998,2]
[329128088,1718125854523,-575.2566376,0.00019998,2]
[329128089,1718125854533,-194.05478043,0.00019998,2]
[329128090,1718125854548,-381.20185717,0.00019998,2]
[329128091,1718125854558,-575.2566376,0.00019998,2]
[329128092,1718125854569,-575.2566376,0.00019998,2]
[329128093,1718125854578,-575.2566376,0.00019998,2]
[329128094,1718125854588,-575.2566376,0.00019998,2]
[329128095,1718125854598,-575.2566376,0.00019998,2]
[329128096,1718125854607,-575.2566376,0.00019998,2]
[329128097,1718125854617,-575.2566376,0.00019998,2]
[329128098,1718125854627,-575.2566376,0.00019998,2]
[329128099,1718125854643,-463.31551272,0.00019998,2]
[329128100,1718125854662,-111.94112488,0.00019998,2]
[329128101,1718125854671,-207.97421534,0.00019998,2]
[329128102,1718125854684,-367.28242226,0.00019998,2]
[329128103,1718125854694,-575.2566376,0.00019998,2]
[329128104,1718125854704,-575.2566376,0.00019998,2]
[329128105,1718125854714,-2186.27755545,0.00019998,2]
[329128106,1718125854724,-2186.27755545,0.00019998,2]
[329128107,1718125854734,-2186.27755545,0.00019998,2]
[329128108,1718125854744,-2186.27755545,0.00019998,2]
[329128109,1718125854755,-2186.27755545,0.00019998,2]
[329128110,1718125854765,-2186.27755545,0.00019998,2]
[329128111,1718125854776,-2186.27755545,0.00019998,2]
[329128112,1718125854787,-2186.27755545,0.00019998,2]
[329128113,1718125854799,-2186.27755545,0.00019998,2]
[329128114,1718125854810,-2186.27755545,0.00019998,2]
[329128115,1718125854821,-2186.27755545,0.00019998,2]
[329128116,1718125854831,-2186.27755545,0.00019998,2]
[329128117,1718125854846,-2186.27755545,0.00019998,2]
[329128118,1718125854857,-2186.27755545,0.00019998,2]
[329128119,1718125854868,-2186.27755545,0.00019998,2]
[329128120,1718125854879,-2186.27755545,0.00019998,2]
[329128121,1718125854889,-2186.27755545,0.00019998,2]
[329128122,1718125854900,-2186.27755545,0.00019998,2]
[329128123,1718125854911,-2186.27755545,0.00019998,2]
[329128124,1718125854923,-2186.27755545,0.00019998,2]
[329128125,1718125854934,-2186.27755545,0.00019998,2]
[329128126,1718125854945,-2186.27755545,0.00019998,2]
[329128127,1718125854956,-2186.27755545,0.00019998,2]
[329128128,1718125854967,-500.0,0.00019998,2]
[329128129,1718125854978,-500.0,0.00019998,2]
[329128130,1718125854988,-2186.27755545,0.00019998,2]
[329128131,1718125854998,-500.0,0.00019998,2]
[329128132,1718125855009,-2186.27755545,0.00019998,2]
[329128133,1718125855020,-549.99999999,0.00019998,2]
[329128134,1718125855035,-2186.27755545,0.00019998,2]
[329128135,1718125855047,-500.0,0.00019998,2]
[329128136,1718125855058,-2186.27755545,0.00019998,2]
[329128137,1718125855068,-205.37274944,0.00019998,2]
[329128138,1718125855079,-2186.27755545,0.00019998,2]
[329128139,1718125855090,-2186.27755545,0.00019998,2]
[329128140,1718125855101,-2186.27755545,0.00019998,2]
[329128141,1718125855113,-500.0,0.00019999,2]
[329128142,1718125855124,-500.0,0.00019999,2]
[329128143,1718125855137,-500.0,0.00019999,2]
[329128144,1718125855150,-500.0,0.00019999,2]
[329128145,1718125855161,-500.0,0.00019999,2]
[329128146,1718125855174,-500.0,0.00020999,2]
[329128147,1718125855184,-500.0,0.00020999,2]
[329128148,1718125855195,-216.72826018,0.00021502,2]
[329128149,1718125855206,-894.71,0.00021502,2]
[329128150,1718125855218,-500.0,0.00021502,2]
[329128151,1718125855229,-500.0,0.00021502,2]
[329128152,1718125855240,-500.0,0.00021502,2]
[329128153,1718125855251,-500.0,0.00021502,2]
[329128154,1718125855261,-4342.25,0.00021502,2]
[329128155,1718125855272,-2625.11,0.00021502,2]
[329128156,1718125855284,-500.0,0.00021502,2]
[329128157,1718125855298,-500.0,0.00021502,2]
[329128158,1718125855308,-500.0,0.00021502,2]
[329128159,1718125855320,-4028.51,0.00021502,2]
[329128160,1718125855425,-166.666666,0.00021507,2]
[329128161,1718125855436,-500.0,0.00021547,2]
[329128162,1718125855446,-500.0,0.00021547,2]
[329128163,1718125855458,-500.0,0.00021547,2]
[329128164,1718125855468,-510.85743427,0.00021547,2]
[329128165,1718125855479,-500.0,0.00021547,2]
[329128166,1718125855491,-500.0,0.00021547,2]
[329128167,1718125855502,-500.0,0.00021547,2]
[329128168,1718125855512,-500.0,0.00021547,2]
[329128169,1718125855523,-500.0,0.00021547,2]
[329128170,1718125855533,-517.18,0.00021547,2]
[329128171,1718125855546,-656.6,0.00021547,2]
[329128172,1718125855556,-513.14356072,0.00021547,2]
[329128173,1718125855567,-500.0,0.00021547,2]
[329128174,1718125855577,-1659.44,0.00021547,2]
[329128175,1718125855588,-500.0,0.00021547,2]
[329128176,1718125855599,-1263.45,0.00021547,2]
[329128177,1718125855609,-643.37,0.00021547,2]
[329128178,1718125855619,-500.0,0.00021547,2]
[329128179,1718125855630,-3274.75,0.00021641,2]
[329128180,1718125855645,-500.0,0.00021641,2]
[329128181,1718125855659,-72.13703906,0.00021643,2]
[329128182,1718125856024,-1355.02163008,0.00019996,2]
[329128183,1718125856035,-2114.58721616,0.00019998,2]
[329128184,1718125856050,-71.69033929,0.00019998,2]
[329128185,1718125856060,-954.19016071,0.00019998,2]
[329128189,1718125919013,208.42988164,9.999e-05,2]
[329128190,1718125925981,1911.54148934,9.999e-05,2]
[329128192,1718125994490,2117.20193608,9.999e-05,2]
[329128195,1718126122422,5880.45582766,9.999e-05,2]
[329128215,1718126846032,1000.0,0.00025999,120]
[329128328,1718127042810,-1984.07396026,0.00015539,2]
[329128331,1718127042835,-653.17648188,0.00015539,2]
[329128334,1718127042853,-1670.99319192,0.00015539,2]
[329128337,1718127042867,-1284.5294023,0.00015539,2]
[329128339,1718127042881,-6935.66217328,0.00015539,2]
[329128341,1718127042892,-300.0,0.0001554,2]
[329128343,1718127042905,-300.0,0.0001554,2]
[329128345,1718127042916,-15163.30753486,0.00015543,2]
[329128347,1718127042927,-1393.4,0.00015544,2]
[329128349,1718127042938,-24900.0,0.00015545,2]
[329128351,1718127042949,-2482.5200576,0.00015792,2]
[329128353,1718127042960,-2054.7386784,0.00016092,2]
[329128355,1718127042972,-264.40402827,0.00016996,2]
[329128357,1718127042983,-33145.503269,0.00017,2]
[329128359,1718127042994,-19118.2032254,0.00017076,2]
[329128361,1718127043005,-420.0,0.00017094,2]
[329128363,1718127043020,-231.165874,0.00017294,2]
[329128365,1718127043031,-264.40402826,0.00017721,2]
[329128386,1718127043042,-3667.02690771,0.00017898,2]
[329128388,1718127043217,-1000.0,0.00018,2]
[329128390,1718127043229,-2114.12320999,0.00018237,2]
[329128392,1718127043240,-1100.93008145,0.00018255,2]
[329128394,1718127043251,-2411.36306232,0.00018256,2]
[329128396,1718127043262,-264.40402826,0.00018447,2]
[329128398,1718127043277,-300.0,0.00018803,2]
[329128400,1718127043287,-662.33880165,0.000189,2]
[329128402,1718127043300,-1000.0,0.00019,2]
[329128404,1718127043311,-264.40402826,0.00019172,2]
[329128406,1718127043322,-500.0,0.00019178,2]
[329128408,1718127043332,-393.12664133,0.00019178,2]
[329128410,1718127043345,-500.0,0.00019178,2]
[329128412,1718127043360,-338.2996952,0.00019178,2]
[329128414,1718127043371,-500.0,0.00019178,2]
[329128416,1718127043384,-158.83946374,0.00019178,2]
[329128418,1718127043395,-157.63869526,0.00019178,2]
[329128420,1718127043408,-500.0,0.00019178,2]
[329128422,1718127043420,-501.02131947,0.00019178,2]
[329128424,1718127043431,-500.0,0.00019178,2]
[329128426,1718127043443,-500.0,0.00019178,2]
[329128428,1718127043456,-500.0,0.00019178,2]
[329128430,1718127043468,-500.0,0.00019178,2]
[329128432,1718127043480,-500.0,0.00019178,2]
[329128434,1718127043491,-500.0,0.00019178,2]
[329128435,1718127043502,-500.0,0.00019178,2]
[329128437,1718127043519,-500.0,0.00019178,2]
[329128439,1718127043531,-500.0,0.00019178,2]
[329128441,1718127043541,-538.19053226,0.00019178,2]
[329128443,1718127043553,-500.0,0.00019178,2]
[329128445,1718127043565,-500.0,0.00019178,2]
[329128447,1718127043575,-500.0,0.00019178,2]
[329128449,1718127043588,-346.7942325,0.00019178,2]
[329128451,1718127043599,-500.0,0.00019178,2]
[329128453,1718127043610,-736.11,0.00019178,2]
[329128455,1718127043621,-500.0,0.00019178,2]
[329128457,1718127043632,-500.0,0.00019178,2]
[329128459,1718127043643,-500.0,0.00019178,2]
[329128461,1718127043654,-500.0,0.00019178,2]
[329128464,1718127043664,-500.0,0.00019178,2]
[329128466,1718127043675,-500.0,0.00019178,2]
[329128470,1718127043685,-595.24,0.00019178,2]
[329128472,1718127043696,-500.0,0.00019178,2]
[329128476,1718127043707,-2456.07,0.00019178,2]
[329128481,1718127043721,-500.0,0.00019178,2]
[329128485,1718127043731,-200.78800434,0.00019178,2]
[329128487,1718127043742,-500.0,0.00019178,2]
[329128489,1718127043753,-500.0,0.00019178,2]
[329128491,1718127043768,-10346.24,0.00019178,2]
[329128493,1718127043778,-500.0,0.00019178,2]
[329128495,1718127043789,-500.0,0.00019178,2]
[329128497,1718127043799,-500.0,0.00019178,2]
[329128499,1718127043810,-500.0,0.00019178,2]
[329128501,1718127043820,-1488.16,0.00019178,2]
[329128503,1718127043831,-5057.58,0.00019178,2]
[329128505,1718127043843,-500.0,0.00019178,2]
[329128507,1718127043853,-601.89,0.00019178,2]
[329128509,1718127043864,-500.0,0.00019178,2]
[329128511,1718127043875,-500.0,0.00019178,2]
[329128513,1718127043885,-500.0,0.00019178,2]
[329128515,1718127043897,-219.79078929,0.00019178,2]
[329128517,1718127043907,-500.0,0.00019178,2]
[329128519,1718127043918,-500.0,0.00019178,2]
[329128521,1718127043928,-1541.98,0.00019178,2]
[329128523,1718127043938,-500.0,0.00019178,2]
[329128524,1718127043949,-500.0,0.00019178,2]
[329128527,1718127043961,-541.87,0.00019178,2]
[329128529,1718127043972,-500.0,0.00019178,2]
[329128531,1718127043984,-500.0,0.00019178,2]
[329128533,1718127043995,-5386.78,0.00019178,2]
[329128534,1718127044006,-500.0,0.00019178,2]
[329128536,1718127044020,-566.08,0.00019178,2]
[329128538,1718127044030,-500.0,0.00019178,2]
[329128540,1718127044040,-292.92614782,0.00019178,2]
[329128542,1718127044051,-1259.59,0.00019178,2]
[329128544,1718127044061,-647.07,0.00019178,2]
[329128546,1718127044072,-500.0,0.00019178,2]
[329128548,1718127044097,-500.0,0.00019178,2]
[329128550,1718127044108,-500.0,0.00019178,2]
[329128552,1718127044119,-500.0,0.00019178,2]
[329128554,1718127044133,-500.0,0.00019178,2]
[329128556,1718127044143,-500.0,0.00019178,2]
[329128558,1718127044154,-500.0,0.00019178,2]
[329128560,1718127044165,-500.0,0.00019178,2]
[329128562,1718127044176,-500.0,0.00019178,2]
[329128564,1718127044186,-500.0,0.00019178,2]
[329128566,1718127044197,-500.0,0.00019178,2]
[329128568,1718127044208,-500.0,0.00019178,2]
[329128570,1718127044219,-500.0,0.00019178,2]
[329128572,1718127044230,-500.0,0.00019178,2]
[329128574,1718127044240,-500.0,0.00019178,2]
[329128576,1718127044251,-500.0,0.00019178,2]
[329128578,1718127044262,-448.9978362,0.00019178,2]
[329128580,1718127044275,-500.0,0.00019178,2]
[329128582,1718127044285,-500.0,0.00019178,2]
[329128584,1718127044298,-500.0,0.00019178,2]
[329128586,1718127044308,-500.0,0.00019178,2]
[329128588,1718127044319,-500.0,0.00019178,2]
[329128590,1718127044330,-500.0,0.00019178,2]
[329128592,1718127044342,-500.0,0.00019178,2]
[329128594,1718127044352,-500.0,0.00019178,2]
[329128596,1718127044363,-500.0,0.00019178,2]
[329128598,1718127044375,-500.0,0.00019178,2]
[329128600,1718127044387,-500.0,0.00019178,2]
[329128602,1718127044397,-258.50828943,0.00019178,2]
[329128603,1718127044408,-500.0,0.00019178,2]
[329128605,1718127044418,-500.0,0.00019178,2]
[329128608,1718127044429,-500.0,0.00019178,2]
[329128610,1718127044440,-184.91151111,0.00019178,2]
[329128612,1718127044452,-500.0,0.00019178,2]
[329128614,1718127044462,-500.0,0.00019178,2]
[329128616,1718127044473,-500.0,0.00019178,2]
[329128618,1718127044485,-500.0,0.00019178,2]
[329128619,1718127044495,-500.0,0.00019178,2]
[329128620,1718127044506,-500.0,0.00019178,2]
[329128621,1718127044517,-500.0,0.00019178,2]
[329128622,1718127044528,-500.0,0.00019178,2]
[329128623,1718127044538,-500.0,0.00019178,2]
[329128624,1718127044548,-500.0,0.00019178,2]
[329128625,1718127044559,-223.41027033,0.00019178,2]
[329128626,1718127044569,-500.0,0.00019178,2]
[329128627,1718127044579,-500.0,0.00019178,2]
[329128628,1718127044590,-500.0,0.00019178,2]
[329128629,1718127044600,-500.0,0.00019178,2]
[329128630,1718127044611,-500.0,0.00019178,2]
[329128631,1718127044622,-500.0,0.00019178,2]
[329128632,1718127044633,-500.0,0.00019178,2]
[329128633,1718127044643,-500.0,0.00019178,2]
[329128634,1718127044654,-500.0,0.00019178,2]
[329128635,1718127044664,-500.0,0.00019178,2]
[329128636,1718127044674,-500.0,0.00019178,2]
[329128637,1718127044685,-500.0,0.00019178,2]
[329128638,1718127044695,-500.0,0.00019178,2]
[329128639,1718127044705,-305.51483098,0.00019178,2]
[329128640,1718127044716,-500.0,0.00019178,2]
[329128641,1718127044726,-500.0,0.00019178,2]
[329128642,1718127044736,-8700.32380824,0.00019452,15]
[329128643,1718127044746,-500.0,0.00019452,2]
[329128644,1718127044757,-500.0,0.00019452,2]
[329128645,1718127044772,-500.0,0.00019452,2]
[329128646,1718127044783,-500.0,0.00019452,2]
[329128647,1718127044793,-500.0,0.00019452,2]
[329128648,1718127044804,-500.0,0.00019452,2]
[329128649,1718127044815,-500.0,0.00019452,2]
[329128650,1718127044826,-500.0,0.00019452,2]
[329128651,1718127044837,-500.0,0.00019452,2]
[329128652,1718127044848,-500.0,0.00019452,2]
[329128653,1718127044859,-500.0,0.00019452,2]
[329128654,1718127044869,-500.0,0.00019452,2]
[329128655,1718127044880,-500.0,0.00019452,2]
[329128656,1718127044890,-500.0,0.00019452,2]
[329128657,1718127044901,-500.0,0.00019452,2]
[329128658,1718127044911,-500.0,0.00019452,2]
[329128659,1718127044921,-736.11,0.00019452,2]
[329128660,1718127044931,-500.0,0.00019452,2]
[329128661,1718127044941,-500.0,0.00019452,2]
[329128662,1718127044951,-500.0,0.00019452,2]
[329128663,1718127044961,-500.0,0.00019452,2]
[329128664,1718127044972,-500.0,0.00019452,2]
[329128665,1718127044982,-595.24,0.00019452,2]
[329128666,1718127044992,-500.0,0.00019452,2]
[329128667,1718127045003,-2456.07,0.00019452,2]
[329128668,1718127045015,-500.0,0.00019452,2]
[329128669,1718127045027,-500.0,0.00019452,2]
[329128670,1718127045038,-500.0,0.00019452,2]
[329128671,1718127045049,-10346.24,0.00019452,2]
[329128672,1718127045060,-500.0,0.00019452,2]
[329128673,1718127045072,-500.0,0.00019452,2]
[329128674,1718127045099,-500.0,0.00019452,2]
[329128675,1718127045110,-500.0,0.00019452,2]
[329128676,1718127045122,-1488.16,0.00019452,2]
[329128677,1718127045133,-5057.58,0.00019452,2]
[329128678,1718127045146,-500.0,0.00019452,2]
[329128679,1718127045157,-601.89,0.00019452,2]
[329128680,1718127045168,-500.0,0.00019452,2]
[329128681,1718127045180,-500.0,0.00019452,2]
[329128682,1718127045191,-500.0,0.00019452,2]
[329128683,1718127045202,-1541.98,0.00019452,2]
[329128684,1718127045212,-500.0,0.00019452,2]
[329128685,1718127045223,-500.0,0.00019452,2]
[329128686,1718127045234,-541.87,0.00019452,2]
[329128687,1718127045244,-500.0,0.00019452,2]
[329128688,1718127045256,-500.0,0.00019452,2]
[329128690,1718127045269,-500.0,0.00019452,2]
[329128692,1718127045280,-566.08,0.00019452,2]
[329128694,1718127045291,-500.0,0.00019452,2]
[329128696,1718127045303,-1259.59,0.00019452,2]
[329128698,1718127045318,-647.07,0.00019452,2]
[329128701,1718127045336,-500.0,0.00019452,2]
[329128703,1718127045352,-500.0,0.00019452,2]
[329128705,1718127045364,-500.0,0.00019452,2]
[329128707,1718127045376,-500.0,0.00019452,2]
[329128709,1718127045389,-500.0,0.00019452,2]
[329128712,1718127045401,-500.0,0.00019452,2]
[329128713,1718127045412,-500.0,0.00019452,2]
[329128715,1718127045423,-500.0,0.00019452,2]
[329128718,1718127045434,-500.0,0.00019452,2]
[329128720,1718127045445,-500.0,0.00019452,2]
[329128722,1718127045455,-500.0,0.00019452,2]
[329128724,1718127045467,-529.80356383,0.00019452,2]
[329128726,1718127045480,-500.0,0.00019726,2]
[329128728,1718127045492,-500.0,0.00019726,2]
[329128730,1718127045503,-500.0,0.00019726,2]
[329128732,1718127045516,-500.0,0.00019726,2]
[329128734,1718127045528,-500.0,0.00019726,2]
[329128736,1718127045540,-209.30122372,0.00019726,2]
[329128738,1718127045551,-500.0,0.00019726,2]
[329128740,1718127045564,-500.0,0.00019726,2]
[329128742,1718127045576,-500.0,0.00019726,2]
[329128744,1718127045590,-500.0,0.00019726,2]
[329128746,1718127045601,-500.0,0.00019726,2]
[329128748,1718127045613,-500.0,0.00019726,2]
[329128750,1718127045627,-500.0,0.00019726,2]
[329128752,1718127045638,-154.87892401,0.00019726,2]
[329128754,1718127045650,-500.0,0.00019726,2]
[329128756,1718127045663,-736.11,0.00019726,2]
[329128758,1718127045675,-500.0,0.00019726,2]
[329128760,1718127045686,-500.0,0.00019726,2]
[329128762,1718127045698,-500.0,0.00019726,2]
[329128764,1718127045708,-500.0,0.00019726,2]
[329128766,1718127045720,-595.24,0.00019726,2]
[329128768,1718127045732,-512.48566568,0.00019726,2]
[329128770,1718127045743,-2456.07,0.00019726,2]
[329128772,1718127045754,-500.0,0.00019726,2]
[329128774,1718127045769,-500.0,0.00019726,2]
[329128776,1718127045780,-10346.24,0.00019726,2]
[329128778,1718127045791,-500.0,0.00019726,2]
[329128780,1718127045802,-500.0,0.00019726,2]
[329128782,1718127045813,-500.0,0.00019726,2]
[329128784,1718127045824,-587.55689518,0.00019726,2]
[329128799,1718127045973,-1488.16,0.00019726,2]
[329128801,1718127045984,-5057.58,0.00019726,2]
[329128804,1718127045994,-503.9760524,0.00019726,2]
[329128807,1718127046005,-601.89,0.00019726,2]
[329128810,1718127046018,-500.0,0.00019726,2]
[329128813,1718127046029,-500.0,0.00019726,2]
[329128816,1718127046040,-312.84819508,0.00019726,2]
[329128819,1718127046052,-500.0,0.00019726,2]
[329128822,1718127046064,-1541.98,0.00019726,2]
[329128825,1718127046087,-500.0,0.00019726,2]
[329128828,1718127046100,-541.87,0.00019726,2]
[329128831,1718127046112,-500.0,0.00019726,2]
[329128834,1718127046122,-500.0,0.00019726,2]
[329128837,1718127046133,-500.0,0.00019726,2]
[329128840,1718127046144,-566.08,0.00019726,2]
[329128843,1718127046156,-500.0,0.00019726,2]
[329128846,1718127046167,-1259.59,0.00019726,2]
[329128849,1718127046178,-647.07,0.00019726,2]
[329128852,1718127046190,-500.0,0.00019726,2]
[329128855,1718127046201,-500.0,0.00019726,2]
[329128858,1718127046212,-500.0,0.00019726,2]
[329128861,1718127046224,-500.0,0.00019726,2]
[329128864,1718127046236,-500.0,0.00019726,2]
[329128867,1718127046248,-500.0,0.00019726,2]
[329128870,1718127046260,-500.0,0.00019726,2]
[329128874,1718127046275,-500.0,0.00019726,2]
[329128876,1718127046285,-500.0,0.00019726,2]
[329128878,1718127046298,-500.0,0.00019726,2]
[329128880,1718127046312,-264.40402826,0.00019897,2]
[329128882,1718127046323,-7685.9106592,0.00019993,2]
[329128885,1718127046336,-659.92725719,0.00019995,2]
[329128888,1718127046349,-272.51996637,0.00019995,2]
[329128891,1718127046363,-759.89577893,0.00019995,2]
[329128894,1718127046375,-411.5321918,0.00019995,2]
[329128897,1718127046387,-187.83191742,0.00019995,2]
[329128900,1718127046399,-200.39532959,0.00019995,2]
[329128903,1718127046410,-5386.78,0.00019995,2]
[329128906,1718127046424,-5386.78,0.00019995,2]
[329128910,1718127046438,-5386.78,0.00019995,2]
[329128913,1718127046450,-5386.78,0.00019995,2]
[329128916,1718127046461,-5386.78,0.00019995,2]
[329128919,1718127046472,-8020.4240106,0.00019996,2]
[329128922,1718127046483,-203.4767354,0.00019996,2]
[329128925,1718127046494,-182.0047069,0.00019996,2]
[329128927,1718127046505,-159.04132765,0.00019996,2]
[329128929,1718127046518,-530.20911563,0.00019996,2]
[329128930,1718127046531,-208.24440478,0.00019996,2]
[329128931,1718127046541,-927.3752309,0.00019996,2]
[329128932,1718127046552,-529.59698056,0.00019996,2]
[329128933,1718127046564,-506.523941,0.00019996,2]
[329128934,1718127046575,-500.0,0.00019996,2]
[329128935,1718127046585,-500.0,0.00019996,2]
[329128936,1718127046597,-500.0,0.00019996,2]
[329128937,1718127046612,-500.0,0.00019996,2]
[329128938,1718127046625,-500.0,0.00019996,2]
[329128939,1718127046641,-500.0,0.00019996,2]
[329128940,1718127046652,-258.94767295,0.00019996,2]
[329128941,1718127046663,-516.36086985,0.00019996,2]
[329128942,1718127046674,-175.41835006,0.00019996,2]